fUSD/lending_fUSD_20250216
["ID","MTS","AMOUNT","RATE_DAILY","PERIOD"]
[353229201,1739685037696,-566.12,0.00010958,2]
[353229202,1739685037706,-1156.65,0.00010958,2]
[353229203,1739685037715,-503.90426215,0.00010958,2]
[353229204,1739685037724,-804.23,0.00010958,2]
[353229205,1739685037734,-500.0,0.00010958,2]
[353229206,1739685037744,-500.0,0.00010958,2]
[353229208,1739685037753,-1094.19,0.00010958,2]
[353229210,1739685037763,-500.0,0.00010958,2]
[353229211,1739685037773,-1541.82,0.00010958,2]
[353229212,1739685037782,-1159.68,0.00010958,2]
[353229213,1739685037792,-500.0,0.00010958,2]
[353229214,1739685037801,-3088.89,0.00010958,2]
[353229215,1739685037811,-518.87903464,0.00010958,2]
[353229216,1739685037820,-637.48,0.00010958,2]
[353229217,1739685037829,-849.36,0.00010958,2]
[353229218,1739685037839,-810.34,0.00010958,2]
[353229219,1739685037849,-649.16,0.00010958,2]
[353229220,1739685037858,-500.0,0.00010958,2]
[353229221,1739685037999,-500.0,0.00010958,2]
[353229222,1739685038009,-500.0,0.00010958,2]
[353229223,1739685038019,-925.12,0.00010958,2]
[353229224,1739685038028,-500.0,0.00010958,2]
[353229225,1739685038037,-1072.24,0.00010958,2]
[353229226,1739685038046,-500.0,0.00010958,2]
[353229227,1739685038055,-1296.76,0.00010958,2]
[353229228,1739685038065,-500.0,0.00010958,2]
[353229229,1739685038074,-2844.91,0.00010958,2]
[353229230,1739685038083,-500.0,0.00010958,2]
[353229231,1739685038092,-500.0,0.00010958,2]
[353229232,1739685038101,-500.0,0.00010958,2]
[353229233,1739685038110,-753.06,0.00010958,2]
[353229234,1739685038122,-739.93,0.00010958,2]
[353229235,1739685038131,-838.33,0.00010958,2]
[353229236,1739685038140,-608.06,0.00010958,2]
[353229237,1739685038154,-500.0,0.00010958,2]
[353229238,1739685038163,-1205.03,0.00010958,2]
[353229239,1739685038172,-500.0,0.00010958,2]
[353229240,1739685038181,-500.0,0.00010958,2]
[353229241,1739685038191,-500.0,0.00010958,2]
[353229242,1739685038200,-500.0,0.00010958,2]
[353229243,1739685038209,-500.0,0.00010958,2]
[353229245,1739685038218,-500.0,0.00010958,2]
[353229246,1739685038227,-1303.24,0.00010958,2]
[353229248,1739685038236,-500.0,0.00010958,2]
[353229250,1739685038246,-500.0,0.00010958,2]
[353229252,1739685038255,-1059.7,0.00010958,2]
[353229254,1739685038264,-500.0,0.00010958,2]
[353229256,1739685038273,-500.0,0.00010958,2]
[353229258,1739685038282,-2008.41,0.00010958,2]
[353229260,1739685038291,-200.4280523,0.00010958,2]
[353229262,1739685038300,-181.81,0.00010985,2]
[353229264,1739685038309,-323.1914861,0.00010999,2]
[353229266,1739685038318,-250.0,0.00011002,2]
[353229268,1739685038327,-277.4256652,0.00011023,2]
[353229270,1739685038336,-443.5649759,0.00011023,2]
[353229272,1739685038345,-205.02748858,0.0001103,2]
[353229273,1739685038355,-205.02748858,0.0001103,2]
[353229274,1739685038364,-277.4256652,0.00011031,2]
[353229275,1739685038373,-277.4256652,0.00011031,2]
[353229276,1739685038383,-277.4256652,0.00011031,2]
[353229277,1739685038392,-277.4256652,0.00011031,2]
[353229278,1739685038402,-277.4256652,0.00011031,2]
[353229279,1739685038415,-443.5649759,0.00011031,2]
[353229280,1739685038424,-443.5649759,0.00011031,2]
[353229281,1739685038433,-443.5649759,0.00011031,2]
[353229282,1739685038443,-443.5649759,0.00011031,2]
[353229283,1739685038452,-443.5649759,0.00011031,2]
[353229284,1739685038461,-500.0,0.00011039,2]
[353229285,1739685038471,-500.0,0.00011039,2]
[353229286,1739685038480,-523.88605574,0.00011039,2]
[353229287,1739685038489,-499.99999999,0.00011039,2]
[353229288,1739685038500,-609.54940249,0.00011039,2]
[353229289,1739685038509,-8393.0,0.00011039,2]
[353229290,1739685038519,-1289.26,0.00011039,2]
[353229291,1739685038528,-1593.0,0.00011039,2]
[353229292,1739685038538,-1094075.87934587,0.0001104,3]
[353229293,1739685038584,-204003.39075895,0.0001104,3]
[353229294,1739685038618,-3119.33402198,0.0001104,3]
[353229296,1739685039872,-2151.0577244,0.0001104,2]
[353229297,1739685039889,-1188.67911828,0.0001104,2]
[353229298,1739685039901,-433.8631797,0.0001104,2]
[353229299,1739685039925,-769.22313,0.0001104,2]
[353229300,1739685039936,-30059.56939588,0.0001104,2]
[353229301,1739685040243,-150.0,0.00010695,2]
[353229304,1739685040253,-533.91510025,0.0001104,3]
[353229305,1739685040265,-9337.25086476,0.0001104,3]
[353229306,1739685040276,-5577.11355132,0.0001104,3]
[353229307,1739685040288,-1764.49026208,0.0001104,3]
[353229308,1739685040299,-1466.00996115,0.0001104,3]
[353229309,1739685040311,-168372.33279294,0.0001104,3]
[353229310,1739685040323,-5010.0,0.0001104,3]
[353229311,1739685040335,-4093.47834983,0.0001104,3]
[353229312,1739685040346,-1746.3324078,0.0001104,3]
[353229313,1739685040357,-4980.16031994,0.0001104,3]
[353229314,1739685040369,-11148.5019612,0.0001104,3]
[353229315,1739685040381,-814.6,0.0001104,3]
[353229316,1739685040392,-2702.37341398,0.0001104,3]
[353229317,1739685040404,-180115.95403526,0.0001104,3]
[353229318,1739685040419,-1660.07913423,0.0001104,3]
[353229319,1739685040431,-475.8703,0.0001104,3]
[353229320,1739685040442,-350.51032233,0.0001104,3]
[353229321,1739685040454,-87223.12876162,0.0001104,3]
[353229322,1739685040465,-188339.7338151,0.0001104,3]
[353229324,1739685042933,-400.0,0.000103,3]
[353229325,1739685042943,-1080.68123411,0.00010819,2]
[353229326,1739685042953,-1628.42958593,0.0001104,3]
[353229327,1739685042965,-1668.84497925,0.0001104,3]
[353229328,1739685042976,-758.57759602,0.0001104,3]
[353229329,1739685043129,-538.42777585,0.0001104,3]
[353229330,1739685043141,-4105.83408949,0.0001104,3]
[353229359,1739685045862,-679.40528476,0.000104,3]
[353229360,1739685045875,-220.59471524,0.000104,3]
[353229361,1739685045886,-100.49401715,0.00010695,2]
[353229362,1739685045897,-375.88955218,0.00010695,2]
[353229363,1739685045909,-300.0,0.00010695,2]
[353229364,1739685045922,-324.43,0.00010695,2]
[353229375,1739685726276,813.09,8.219e-05,2]
[353229385,1739686232111,-592.36206145,9.193e-05,2]
[353229386,1739686232148,-467.63793855,9.193e-05,2]
[353229387,1739686232158,-158.5298629,9.203e-05,2]
[353229388,1739686232170,-41.4701371,9.203e-05,2]
[353229389,1739686232180,-353.26469056,9.214e-05,2]
[353229390,1739686232192,-146.73530944,9.214e-05,2]
[353229391,1739686232201,-500.0,9.214e-05,2]
[353229392,1739686232212,-1000.0,9.427e-05,2]
[353229393,1739686232222,-437.35694238,9.443e-05,2]
[353229394,1739686232240,-393.14808969,9.443e-05,2]
[353229395,1739686232251,-639.900128,9.443e-05,2]
[353229396,1739686232283,-946.03483993,9.443e-05,2]
[353229397,1739686232292,-2000.0,9.508e-05,2]
[353229398,1739686232302,-1673.81,9.522e-05,2]
[353229399,1739686232311,-300.0,9.651e-05,2]
[353229400,1739686232320,-1177.96,9.652e-05,2]
[353229401,1739686232330,-1368.22,9.652e-05,2]
[353229402,1739686232339,-1060.0,9.677e-05,2]
[353229403,1739686232349,-280.42,9.694e-05,2]
[353229404,1739686232358,-2042.21882982,9.791e-05,2]
[353229405,1739686232370,-6702.90292869,9.791e-05,2]
[353229406,1739686232381,-256.04856391,9.791e-05,2]
[353229407,1739686232392,-14898.82967758,9.791e-05,2]
[353229408,1739686232401,-868.54,9.836e-05,2]
[353229409,1739686232411,-3392.41,9.877e-05,2]
[353229410,1739686232422,-6733.78,9.902e-05,2]
[353229411,1739686232431,-150.0,9.912e-05,2]
[353229412,1739686232441,-150.0,9.912e-05,2]
[353229413,1739686232452,-150.0,9.912e-05,2]
[353229414,1739686232462,-150.0,9.912e-05,2]
[353229415,1739686232472,-469.53,9.925e-05,2]
[353229416,1739686232482,-655.56187264,9.958e-05,2]
[353229417,1739686232492,-150.0,0.00010035,2]
[353229418,1739686232501,-150.0,0.00010057,2]
[353229419,1739686232511,-800.0,0.00010058,2]
[353229420,1739686232520,-800.0,0.00010058,2]
[353229421,1739686232530,-500.0,0.00010058,2]
[353229422,1739686232539,-150.0,0.00010112,2]
[353229423,1739686232549,-200.0,0.00010112,2]
[353229424,1739686232558,-150.0,0.00010112,2]
[353229425,1739686232568,-200.0,0.00010135,2]
[353229426,1739686232577,-150.0,0.00010135,2]
[353229428,1739686232587,-181.13,0.00010137,2]
[353229430,1739686232596,-502.0,0.00010137,2]
[353229432,1739686232605,-150.0,0.00010157,2]
[353229434,1739686232615,-1060.0,0.00010186,2]
[353229435,1739686232625,-150.0,0.00010188,2]
[353229436,1739686232635,-301.46,0.00010219,2]
[353229437,1739686232644,-986.16,0.00010219,2]
[353229438,1739686232654,-150.0,0.00010279,2]
[353229439,1739686232663,-300.0,0.000103,3]
[353229440,1739686232673,-700.0,0.000104,3]
[353229441,1739686232683,-150.0,0.00010402,2]
[353229442,1739686232693,-1008.0,0.00010421,2]
[353229443,1739686232703,-150.0,0.00010421,2]
[353229444,1739686232713,-3450.382,0.00010421,2]
[353229445,1739686232723,-813.09,0.00010461,2]
[353229446,1739686232732,-150.0,0.00010463,2]
[353229447,1739686232742,-150.0,0.00010463,2]
[353229448,1739686232751,-150.99,0.00010475,2]
[353229449,1739686232761,-2166.75091305,0.00010475,2]
[353229452,1739686232825,-2681.53569738,0.00010475,2]
[353229453,1739686232837,-3137.60941758,0.00010475,2]
[353229454,1739686232848,-1777.19374894,0.00010475,2]
[353229455,1739686232867,-8109.04658966,0.00010475,2]
[353229456,1739686232879,-17575.74363339,0.00010475,2]
[353229457,1739686232889,-999.99,0.00010475,2]
[353229458,1739686232899,-299.99,0.00010475,2]
[353229459,1739686232908,-1100.0,0.000105,3]
[353229460,1739686232918,-150.0,0.00010524,2]
[353229461,1739686232927,-1500.0,0.000106,3]
[353229462,1739686232936,-1000.0,0.00010606,2]
[353229463,1739686232946,-420.0,0.00010616,2]
[353229464,1739686232956,-150.0,0.00010647,2]
[353229465,1739686232965,-852.888,0.00010695,2]
[353229466,1739686232975,-569.0,0.00010695,2]
[353229467,1739686232984,-638.0,0.00010695,2]
[353229468,1739686232994,-1265.0,0.00010695,2]
[353229469,1739686233008,-783.0,0.00010695,2]
[353229470,1739686233018,-908.0,0.00010695,2]
[353229471,1739686233027,-1900.0,0.000107,3]
[353229472,1739686233036,-1060.0,0.00010722,2]
[353229473,1739686233047,-150.0,0.00010738,2]
[353229474,1739686233056,-150.0,0.00010769,2]
[353229475,1739686233065,-300.0,0.000108,3]
[353229476,1739686233075,-150.0,0.00010821,2]
[353229477,1739686233086,-150.0,0.00010891,2]
[353229478,1739686233096,-300.0,0.000109,3]
[353229479,1739686233105,-150.0,0.00010906,2]
[353229480,1739686233115,-150.0,0.00010908,2]
[353229481,1739686233129,-165.0774367,0.00010938,2]
[353229482,1739686233139,-1710.06408598,0.0001094,2]
[353229483,1739686233149,-259.06914378,0.0001094,2]
[353229484,1739686233158,-198.85314804,0.0001094,2]
[353229485,1739686233168,-247.824996,0.00010956,2]
[353229486,1739686233179,-500.84248307,0.00010958,2]
[353229487,1739686233188,-500.0,0.00010958,2]
[353229488,1739686233198,-500.0,0.00010958,2]
[353229489,1739686233209,-500.0,0.00010958,2]
[353229490,1739686233218,-1717.79,0.00010958,2]
[353229491,1739686233228,-505.18536688,0.00010958,2]
[353229492,1739686233238,-500.0,0.00010958,2]
[353229493,1739686233248,-500.0,0.00010958,2]
[353229494,1739686233258,-504.49027362,0.00010958,2]
[353229495,1739686233268,-517.29023351,0.00010958,2]
[353229496,1739686233278,-510.93681751,0.00010958,2]
[353229497,1739686233288,-455.00054547,0.00010958,2]
[353229498,1739686233297,-500.0,0.00010958,2]
[353229499,1739686233307,-268.55426475,0.00010958,2]
[353229500,1739686233317,-500.0,0.00010958,2]
[353229501,1739686233326,-511.01143457,0.00010958,2]
[353229502,1739686233335,-500.0,0.00010958,2]
[353229503,1739686233343,-500.0,0.00010958,2]
[353229504,1739686233353,-500.0,0.00010958,2]
[353229505,1739686233363,-500.0,0.00010958,2]
[353229506,1739686233372,-500.0,0.00010958,2]
[353229507,1739686233381,-500.0,0.00010958,2]
[353229508,1739686233391,-500.0,0.00010958,2]
[353229509,1739686233400,-500.0,0.00010958,2]
[353229510,1739686233410,-1027.348,0.00010958,2]
[353229511,1739686233419,-500.0,0.00010958,2]
[353229512,1739686233428,-500.0,0.00010958,2]
[353229513,1739686233438,-500.0,0.00010958,2]
[353229514,1739686233448,-500.0,0.00010958,2]
[353229515,1739686233459,-500.0,0.00010958,2]
[353229516,1739686233468,-500.0,0.00010958,2]
[353229517,1739686233478,-525.14571693,0.00010958,2]
[353229518,1739686233488,-500.0,0.00010958,2]
[353229519,1739686233498,-500.0,0.00010958,2]
[353229520,1739686233507,-500.0,0.00010958,2]
[353229521,1739686233517,-500.0,0.00010958,2]
[353229522,1739686233526,-577.8089813,0.00010958,2]
[353229523,1739686233535,-500.0,0.00010958,2]
[353229524,1739686233545,-500.0,0.00010958,2]
[353229525,1739686233554,-245.22099059,0.00010958,2]
[353229526,1739686233564,-500.0,0.00010958,2]
[353229527,1739686233573,-500.0,0.00010958,2]
[353229528,1739686233582,-500.0,0.00010958,2]
[353229529,1739686233592,-500.0,0.00010958,2]
[353229530,1739686233602,-777.18,0.00010958,2]
[353229531,1739686233612,-500.0,0.00010958,2]
[353229532,1739686233621,-500.0,0.00010958,2]
[353229533,1739686233631,-500.0,0.00010958,2]
[353229534,1739686233641,-500.0,0.00010958,2]
[353229535,1739686233650,-500.0,0.00010958,2]
[353229536,1739686233660,-498.74882563,0.00010958,2]
[353229537,1739686233670,-500.0,0.00010958,2]
[353229538,1739686233679,-500.0,0.00010958,2]
[353229539,1739686233689,-500.0,0.00010958,2]
[353229540,1739686233699,-383.98914694,0.00010958,2]
[353229541,1739686233708,-500.0,0.00010958,2]
[353229542,1739686233718,-500.0,0.00010958,2]
[353229543,1739686233727,-500.0,0.00010958,2]
[353229544,1739686233737,-500.0,0.00010958,2]
[353229545,1739686233746,-500.0,0.00010958,2]
[353229546,1739686233755,-500.0,0.00010958,2]
[353229547,1739686233765,-500.0,0.00010958,2]
[353229548,1739686233775,-858.05,0.00010958,2]
[353229549,1739686233785,-500.0,0.00010958,2]
[353229550,1739686233794,-500.0,0.00010958,2]
[353229551,1739686233804,-500.0,0.00010958,2]
[353229552,1739686233813,-500.0,0.00010958,2]
[353229553,1739686233822,-500.0,0.00010958,2]
[353229554,1739686233832,-500.0,0.00010958,2]
[353229555,1739686233841,-500.0,0.00010958,2]
[353229556,1739686233851,-500.0,0.00010958,2]
[353229557,1739686233860,-500.0,0.00010958,2]
[353229558,1739686233869,-500.0,0.00010958,2]
[353229559,1739686233878,-500.0,0.00010958,2]
[353229560,1739686233888,-500.0,0.00010958,2]
[353229561,1739686233897,-500.0,0.00010958,2]
[353229562,1739686233906,-500.0,0.00010958,2]
[353229563,1739686233915,-500.0,0.00010958,2]
[353229564,1739686233924,-500.0,0.00010958,2]
[353229565,1739686233933,-500.0,0.00010958,2]
[353229566,1739686233943,-500.0,0.00010958,2]
[353229567,1739686233952,-500.0,0.00010958,2]
[353229568,1739686233962,-500.0,0.00010958,2]
[353229569,1739686233972,-500.0,0.00010958,2]
[353229570,1739686233981,-500.0,0.00010958,2]
[353229571,1739686233991,-500.0,0.00010958,2]
[353229572,1739686234004,-500.0,0.00010958,2]
[353229573,1739686234014,-500.0,0.00010958,2]
[353229574,1739686234023,-500.0,0.00010958,2]
[353229575,1739686234032,-905.65,0.00010958,2]
[353229576,1739686234043,-500.0,0.00010958,2]
[353229577,1739686234052,-500.0,0.00010958,2]
[353229578,1739686234061,-500.0,0.00010958,2]
[353229579,1739686234072,-500.0,0.00010958,2]
[353229580,1739686234081,-774.21,0.00010958,2]
[353229581,1739686234092,-627.77,0.00010958,2]
[353229582,1739686234101,-500.0,0.00010958,2]
[353229583,1739686234110,-500.0,0.00010958,2]
[353229584,1739686234119,-500.0,0.00010958,2]
[353229585,1739686234128,-500.0,0.00010958,2]
[353229586,1739686234138,-500.0,0.00010958,2]
[353229587,1739686234147,-500.0,0.00010958,2]
[353229588,1739686234156,-500.0,0.00010958,2]
[353229589,1739686234166,-555.62,0.00010958,2]
[353229590,1739686234175,-500.0,0.00010958,2]
[353229591,1739686234184,-500.0,0.00010958,2]
[353229592,1739686234193,-216.84858072,0.00010958,2]
[353229593,1739686234203,-500.0,0.00010958,2]
[353229594,1739686234214,-500.0,0.00010958,2]
[353229595,1739686234223,-500.0,0.00010958,2]
[353229596,1739686234232,-500.0,0.00010958,2]
[353229597,1739686234243,-239.97894051,0.00010958,2]
[353229598,1739686234252,-500.0,0.00010958,2]
[353229599,1739686234262,-500.0,0.00010958,2]
[353229600,1739686234271,-500.0,0.00010958,2]
[353229601,1739686234280,-500.0,0.00010958,2]
[353229602,1739686234290,-500.0,0.00010958,2]
[353229603,1739686234299,-500.0,0.00010958,2]
[353229604,1739686234309,-500.0,0.00010958,2]
[353229605,1739686234318,-500.0,0.00010958,2]
[353229606,1739686234327,-500.0,0.00010958,2]
[353229607,1739686234336,-500.0,0.00010958,2]
[353229608,1739686234346,-500.0,0.00010958,2]
[353229609,1739686234355,-500.0,0.00010958,2]
[353229610,1739686234365,-500.0,0.00010958,2]
[353229611,1739686234374,-500.0,0.00010958,2]
[353229612,1739686234384,-500.0,0.00010958,2]
[353229613,1739686234393,-500.0,0.00010958,2]
[353229614,1739686234403,-500.0,0.00010958,2]
[353229615,1739686234412,-500.0,0.00010958,2]
[353229616,1739686234421,-753.4,0.00010958,2]
[353229617,1739686234431,-601.13,0.00010958,2]
[353229618,1739686234440,-825.85,0.00010958,2]
[353229619,1739686234449,-500.0,0.00010958,2]
[353229620,1739686234459,-500.0,0.00010958,2]
[353229621,1739686234468,-500.0,0.00010958,2]
[353229622,1739686234477,-1285.07,0.00010958,2]
[353229623,1739686234487,-500.0,0.00010958,2]
[353229624,1739686234496,-514.33,0.00010958,2]
[353229625,1739686234505,-500.0,0.00010958,2]
[353229626,1739686234516,-813.2,0.00010958,2]
[353229627,1739686234526,-554.41,0.00010958,2]
[353229628,1739686234535,-740.21,0.00010958,2]
[353229629,1739686234546,-758.73,0.00010958,2]
[353229630,1739686234556,-3821.19,0.00010958,2]
[353229631,1739686234565,-639.93,0.00010958,2]
[353229632,1739686234575,-500.0,0.00010958,2]
[353229633,1739686234585,-648.07,0.00010958,2]
[353229634,1739686234595,-1400.61,0.00010958,2]
[353229635,1739686234604,-618.58851907,0.00010958,2]
[353229636,1739686234614,-976.39,0.00010958,2]
[353229637,1739686234623,-707.719608,0.00010958,2]
[353229638,1739686234633,-500.0,0.00010958,2]
[353229639,1739686234642,-668.79,0.00010958,2]
[353229640,1739686234652,-514.18,0.00010958,2]
[353229641,1739686234832,-484.56398887,0.00010958,2]
[353229642,1739686234843,-500.0,0.00010958,2]
[353229643,1739686234854,-500.0,0.00010958,2]
[353229644,1739686234864,-1013.573666,0.00010958,2]
[353229645,1739686234874,-500.0,0.00010958,2]
[353229646,1739686234883,-500.0,0.00010958,2]
[353229647,1739686234893,-1509.03,0.00010958,2]
[353229648,1739686234902,-158.486777,0.00010958,2]
[353229649,1739686234911,-726.97,0.00010958,2]
[353229650,1739686234921,-500.0,0.00010958,2]
[353229651,1739686234931,-500.0,0.00010958,2]
[353229652,1739686234940,-1053.1,0.00010958,2]
[353229653,1739686234951,-550.2,0.00010958,2]
[353229654,1739686234961,-1840.59,0.00010958,2]
[353229655,1739686234970,-846.31,0.00010958,2]
[353229656,1739686234980,-566.84,0.00010958,2]
[353229657,1739686234989,-1063.2,0.00010958,2]
[353229658,1739686234999,-1059.8,0.00010958,2]
[353229659,1739686235012,-1285.76,0.00010958,2]
[353229660,1739686235022,-1551.61,0.00010958,2]
[353229661,1739686235032,-500.0,0.00010958,2]
[353229662,1739686235043,-500.0,0.00010958,2]
[353229663,1739686235052,-3233.32,0.00010958,2]
[353229664,1739686235062,-1248.69,0.00010958,2]
[353229665,1739686235071,-659.72,0.00010958,2]
[353229666,1739686235082,-1309.03,0.00010958,2]
[353229667,1739686235092,-1343.23,0.00010958,2]
[353229668,1739686235101,-641.34,0.00010958,2]
[353229669,1739686235111,-1451.88,0.00010958,2]
[353229670,1739686235121,-599.64,0.00010958,2]
[353229671,1739686235132,-515.28,0.00010958,2]
[353229672,1739686235141,-3326.64,0.00010958,2]
[353229673,1739686235151,-521.43,0.00010958,2]
[353229674,1739686235162,-759.15,0.00010958,2]
[353229675,1739686235171,-1042.49,0.00010958,2]
[353229676,1739686235181,-3169.7,0.00010958,2]
[353229677,1739686235191,-970.59,0.00010958,2]
[353229678,1739686235200,-500.0,0.00010958,2]
[353229679,1739686235211,-733.9,0.00010958,2]
[353229680,1739686235220,-500.0,0.00010958,2]
[353229681,1739686235231,-970.97,0.00010958,2]
[353229682,1739686235240,-1131.49,0.00010958,2]
[353229683,1739686235249,-1515.03,0.00010958,2]
[353229684,1739686235259,-582.33,0.00010958,2]
[353229685,1739686235268,-1361.78,0.00010958,2]
[353229686,1739686235277,-5060.93,0.00010958,2]
[353229687,1739686235287,-1499.5,0.00010958,2]
[353229688,1739686235296,-500.0,0.00010958,2]
[353229689,1739686235306,-1074.21,0.00010958,2]
[353229690,1739686235316,-1823.29,0.00010958,2]
[353229691,1739686235325,-542.54,0.00010958,2]
[353229692,1739686235335,-770.72,0.00010958,2]
[353229693,1739686235345,-1111.36,0.00010958,2]
[353229694,1739686235354,-500.0,0.00010958,2]
[353229695,1739686235363,-500.0,0.00010958,2]
[353229696,1739686235373,-2960.18,0.00010958,2]
[353229697,1739686235382,-610.92,0.00010958,2]
[353229698,1739686235392,-622.11,0.00010958,2]
[353229699,1739686235401,-500.0,0.00010958,2]
[353229700,1739686235410,-500.0,0.00010958,2]
[353229701,1739686235419,-1027.56,0.00010958,2]
[353229702,1739686235430,-1242.73,0.00010958,2]
[353229703,1739686235439,-803.4,0.00010958,2]
[353229704,1739686235448,-721.68,0.00010958,2]
[353229705,1739686235458,-500.0,0.00010958,2]
[353229706,1739686235468,-709.1,0.00010958,2]
[353229707,1739686235478,-500.0,0.00010958,2]
[353229708,1739686235487,-500.0,0.00010958,2]
[353229709,1739686235500,-500.0,0.00010958,2]
[353229710,1739686235510,-1248.93,0.00010958,2]
[353229711,1739686235519,-500.0,0.00010958,2]
[353229712,1739686235529,-582.73,0.00010958,2]
[353229713,1739686235538,-500.0,0.00010958,2]
[353229714,1739686235548,-623.7810162,0.00010958,2]
[353229715,1739686235558,-650.93,0.00010958,2]
[353229716,1739686235567,-40106.21995574,0.00010958,2]
[353229717,1739686235577,-150.0,0.0001097,2]
[353229718,1739686235586,-215.4609907,0.00010999,2]
[353229719,1739686235598,-405.95,0.00011,2]
[353229720,1739686235607,-150.0,0.00011014,2]
[353229721,1739686235616,-150.0,0.00011014,2]
[353229722,1739686235626,-150.0,0.00011014,2]
[353229723,1739686235636,-150.0,0.00011024,2]
[353229724,1739686235646,-500.0,0.00011031,2]
[353229725,1739686235655,-500.0,0.00011031,2]
[353229726,1739686235665,-500.0,0.00011031,2]
[353229727,1739686235674,-500.0,0.00011031,2]
[353229728,1739686235686,-500.0,0.00011031,2]
[353229729,1739686235695,-500.0,0.00011031,2]
[353229730,1739686235705,-500.0,0.00011031,2]
[353229731,1739686235715,-881.0,0.00011031,2]
[353229732,1739686235724,-227.680764,0.00011031,2]
[353229733,1739686235734,-258.3039832,0.00011031,2]
[353229734,1739686235744,-258.3039832,0.00011031,2]
[353229735,1739686235753,-258.3039832,0.00011031,2]
[353229736,1739686235762,-258.3039832,0.00011031,2]
[353229737,1739686235772,-258.3039832,0.00011031,2]
[353229738,1739686235782,-258.3039832,0.00011031,2]
[353229739,1739686235792,-150.0,0.00011036,2]
[353229740,1739686235803,-1924.73,0.00011038,2]
[353229741,1739686235814,-500.0,0.00011038,2]
[353229742,1739686235823,-622.3,0.00011038,2]
[353229743,1739686235833,-500.0,0.00011038,2]
[353229744,1739686235843,-500.0,0.00011038,2]
[353229745,1739686235852,-500.0,0.00011038,2]
[353229746,1739686235862,-500.0,0.00011038,2]
[353229747,1739686235872,-500.0,0.00011038,2]
[353229748,1739686235881,-500.0,0.00011038,2]
[353229749,1739686235891,-572.84,0.00011038,2]
[353229750,1739686235901,-500.0,0.00011038,2]
[353229751,1739686235910,-500.0,0.00011038,2]
[353229752,1739686235919,-500.0,0.00011038,2]
[353229753,1739686235930,-500.0,0.00011038,2]
[353229754,1739686235940,-500.0,0.00011038,2]
[353229755,1739686235949,-500.0,0.00011038,2]
[353229756,1739686235958,-500.0,0.00011038,2]
[353229757,1739686235968,-593.91,0.00011038,2]
[353229758,1739686235977,-500.0,0.00011038,2]
[353229759,1739686235987,-500.0,0.00011038,2]
[353229760,1739686235996,-500.0,0.00011038,2]
[353229761,1739686236010,-500.0,0.00011038,2]
[353229762,1739686236019,-500.0,0.00011038,2]
[353229763,1739686236028,-500.0,0.00011038,2]
[353229764,1739686236038,-500.0,0.00011038,2]
[353229765,1739686236049,-516.17,0.00011038,2]
[353229766,1739686236058,-500.0,0.00011038,2]
[353229767,1739686236067,-500.0,0.00011038,2]
[353229768,1739686236077,-500.0,0.00011038,2]
[353229769,1739686236086,-1912.98,0.00011038,2]
[353229770,1739686236096,-500.0,0.00011038,2]
[353229771,1739686236105,-500.0,0.00011038,2]
[353229772,1739686236114,-613.65,0.00011038,2]
[353229773,1739686236123,-500.0,0.00011038,2]